[Event "Early-Titled-Tuesday-Blitz-October-17-2023"]
[Site "Chess.com"]
[Date "2023.10.17"]
[Round "6"]
[White "nelsi"]
[Black "Shuvalov"]
[Result "0-1"]
[WhiteElo "2286"]
[BlackElo "2504"]
[TimeControl "180+1"]
[EndTime "9:12:34 PDT"]
[Termination "Shuvalov won by checkmate"]

1. e4 {[%clk 0:03:00.9]} 1... e6 {[%clk 0:02:59.9]} 2. Nf3 {[%clk 0:02:59.9]}
2... d5 {[%clk 0:03:00.1]} 3. e5 {[%clk 0:02:59.6]} 3... c5 {[%clk 0:03:00.2]}
4. b4 {[%clk 0:03:00]} 4... cxb4 {[%clk 0:03:00.4]} 5. a3 {[%clk 0:03:00.3]}
5... bxa3 {[%clk 0:02:59.2]} 6. Rxa3 {[%clk 0:03:01.2]} 6... Nc6 {[%clk
0:02:54.3]} 7. d4 {[%clk 0:03:00.5]} 7... Bd7 {[%clk 0:02:51.4]} 8. c3 {[%clk
0:02:56.4]} 8... Rc8 {[%clk 0:02:48.2]} 9. Bd3 {[%clk 0:02:55.9]} 9... a5 {[%clk
0:02:34.4]} 10. Rb3 {[%clk 0:02:53.7]} 10... Qc7 {[%clk 0:02:25.5]} 11. Na3
{[%clk 0:02:53.4]} 11... Na7 {[%clk 0:02:24]} 12. O-O {[%clk 0:02:43.4]} 12...
Ba4 {[%clk 0:02:21.9]} 13. Nb5 {[%clk 0:02:28.9]} 13... Nxb5 {[%clk 0:02:15.8]}
14. Bxb5+ {[%clk 0:02:28.9]} 14... Bxb5 {[%clk 0:02:16.1]} 15. Rxb5 {[%clk
0:02:29.8]} 15... h6 {[%clk 0:02:04.7]} 16. Qa4 {[%clk 0:02:26.5]} 16... Qd7
{[%clk 0:02:00.6]} 17. Qxa5 {[%clk 0:02:19.8]} 17... Ne7 {[%clk 0:01:56.2]} 18.
Ba3 {[%clk 0:02:09.6]} 18... Nc6 {[%clk 0:01:54.6]} 19. Qa4 {[%clk 0:02:10.3]}
19... Bxa3 {[%clk 0:01:52.2]} 20. Qxa3 {[%clk 0:02:11.2]} 20... Ne7 {[%clk
0:01:49.8]} 21. Rfb1 {[%clk 0:02:08.8]} 21... Rb8 {[%clk 0:01:41.4]} 22. Rxb7
{[%clk 0:01:59.6]} 22... Rxb7 {[%clk 0:01:39.8]} 23. Qa8+ {[%clk 0:01:59.5]}
23... Qc8 {[%clk 0:01:37]} 24. Qxb7 {[%clk 0:01:47.6]} 24... Qxb7 {[%clk
0:01:21.2]} 25. Rxb7 {[%clk 0:01:48.5]} 25... Kd8 {[%clk 0:01:11.4]} 26. Kf1
{[%clk 0:01:38.4]} 26... Re8 {[%clk 0:01:10.9]} 27. Ke2 {[%clk 0:01:37.8]} 27...
Kc8 {[%clk 0:01:11]} 28. Ra7 {[%clk 0:01:27]} 28... Kb8 {[%clk 0:01:10.2]} 29.
Ra4 {[%clk 0:01:19.3]} 29... Nc6 {[%clk 0:01:08.2]} 30. Kd3 {[%clk 0:01:15.7]}
30... Kc7 {[%clk 0:01:05.6]} 31. Ne1 {[%clk 0:01:08.3]} 31... Rb8 {[%clk
0:01:05]} 32. Kc2 {[%clk 0:01:06.2]} 32... Kb6 {[%clk 0:00:52.5]} 33. Nd3 {[%clk
0:01:03]} 33... Rc8 {[%clk 0:00:50.2]} 34. f4 {[%clk 0:00:56]} 34... g5 {[%clk
0:00:46.9]} 35. g3 {[%clk 0:00:47.6]} 35... Kb5 {[%clk 0:00:41.5]} 36. Ra1
{[%clk 0:00:41.3]} 36... Nxd4+ {[%clk 0:00:39.8]} 37. Kb2 {[%clk 0:00:34.9]}
37... Ne2 {[%clk 0:00:34.9]} 38. Ra7 {[%clk 0:00:21.8]} 38... Rxc3 {[%clk
0:00:27.7]} 39. Nf2 {[%clk 0:00:12.1]} 39... gxf4 {[%clk 0:00:25]} 40. gxf4
{[%clk 0:00:12.4]} 40... Rf3 {[%clk 0:00:23.4]} 41. Rxf7 {[%clk 0:00:13]} 41...
Rxf2 {[%clk 0:00:23.2]} 42. Kb3 {[%clk 0:00:13.5]} 42... Nd4+ {[%clk 0:00:18.5]}
43. Kc3 {[%clk 0:00:13.4]} 43... Nc6 {[%clk 0:00:18.4]} 44. Rf6 {[%clk
0:00:13.4]} 44... Rf3+ {[%clk 0:00:17.5]} 45. Kd2 {[%clk 0:00:13.5]} 45... Nd4
{[%clk 0:00:17.8]} 46. Rxh6 {[%clk 0:00:12.6]} 46... Rxf4 {[%clk 0:00:17.3]} 47.
h4 {[%clk 0:00:13.2]} 47... Kc4 {[%clk 0:00:16.5]} 48. Rh8 {[%clk 0:00:14.1]}
48... Rf2+ {[%clk 0:00:16.5]} 49. Ke3 {[%clk 0:00:12.8]} 49... Rh2 {[%clk
0:00:14.2]} 50. Rc8+ {[%clk 0:00:12.2]} 50... Kb5 {[%clk 0:00:13]} 51. Kxd4
{[%clk 0:00:12.4]} 51... Rxh4+ {[%clk 0:00:13.2]} 52. Kd3 {[%clk 0:00:12.8]}
52... Re4 {[%clk 0:00:13.4]} 53. Rb8+ {[%clk 0:00:12]} 53... Kc6 {[%clk
0:00:13.3]} 54. Rc8+ {[%clk 0:00:12.5]} 54... Kd7 {[%clk 0:00:13.5]} 55. Rh8
{[%clk 0:00:12.9]} 55... Rxe5 {[%clk 0:00:13.9]} 56. Rh4 {[%clk 0:00:13.1]}
56... Kd6 {[%clk 0:00:14.2]} 57. Ra4 {[%clk 0:00:12.5]} 57... Rh5 {[%clk
0:00:13.8]} 58. Ke3 {[%clk 0:00:10.1]} 58... Rh3+ {[%clk 0:00:13.7]} 59. Kd2
{[%clk 0:00:09.1]} 59... Ke5 {[%clk 0:00:14]} 60. Rg4 {[%clk 0:00:08.6]} 60...
d4 {[%clk 0:00:13.2]} 61. Rg8 {[%clk 0:00:08.2]} 61... Kd5 {[%clk 0:00:13.3]}
62. Rd8+ {[%clk 0:00:08.1]} 62... Ke4 {[%clk 0:00:13.5]} 63. Rg8 {[%clk
0:00:06.3]} 63... e5 {[%clk 0:00:13.3]} 64. Rg4+ {[%clk 0:00:06.7]} 64... Kd5
{[%clk 0:00:13.5]} 65. Ke2 {[%clk 0:00:01.6]} 65... Re3+ {[%clk 0:00:09.3]} 66.
Kd2 {[%clk 0:00:02]} 66... Re4 {[%clk 0:00:08.9]} 67. Rg8 {[%clk 0:00:02.9]}
67... Rh4 {[%clk 0:00:08.7]} 68. Rd8+ {[%clk 0:00:03.3]} 68... Ke4 {[%clk
0:00:09]} 69. Rg8 {[%clk 0:00:04.2]} 69... Rh2+ {[%clk 0:00:09.2]} 70. Ke1
{[%clk 0:00:04.5]} 70... Kd3 {[%clk 0:00:07.5]} 71. Rg3+ {[%clk 0:00:05.1]}
71... Kc4 {[%clk 0:00:07.4]} 72. Ra3 {[%clk 0:00:06]} 72... e4 {[%clk
0:00:07.3]} 73. Ra4+ {[%clk 0:00:05.9]} 73... Kc3 {[%clk 0:00:06.7]} 74. Ra3+
{[%clk 0:00:06.4]} 74... Kb4 {[%clk 0:00:06.7]} 75. Rg3 {[%clk 0:00:07.1]} 75...
e3 {[%clk 0:00:05.8]} 76. Kd1 {[%clk 0:00:07.5]} 76... Kc3 {[%clk 0:00:05.8]}
77. Rg1 {[%clk 0:00:07.5]} 77... Ra2 {[%clk 0:00:04.6]} 78. Kc1 {[%clk
0:00:08.3]} 78... Ra1# {[%clk 0:00:04.5]} 0-1

[Event "Early-Titled-Tuesday-Blitz-October-17-2023"]
[Site "Chess.com"]
[Date "2023.10.17"]
[Round "6"]
[White "Maitreia"]
[Black "bascheyaro"]
[Result "1/2-1/2"]
[WhiteElo "2699"]
[BlackElo "2839"]
[TimeControl "180+1"]
[EndTime "9:12:35 PDT"]
[Termination "Game drawn - insufficient material"]

1. c4 {[%clk 0:02:59.8]} 1... e6 {[%clk 0:03:00]} 2. Nf3 {[%clk 0:02:59.8]} 2...
d5 {[%clk 0:03:00.3]} 3. g3 {[%clk 0:03:00.7]} 3... Nf6 {[%clk 0:03:00.5]} 4. b3
{[%clk 0:03:00.8]} 4... Be7 {[%clk 0:03:00.8]} 5. Bb2 {[%clk 0:03:01.4]} 5...
O-O {[%clk 0:03:01]} 6. Bg2 {[%clk 0:03:02.1]} 6... Nbd7 {[%clk 0:03:00.8]} 7.
O-O {[%clk 0:03:02]} 7... c6 {[%clk 0:03:00.7]} 8. d3 {[%clk 0:03:01.8]} 8... b6
{[%clk 0:03:00.2]} 9. Nc3 {[%clk 0:03:00.9]} 9... c5 {[%clk 0:02:54.9]} 10. cxd5
{[%clk 0:03:00.5]} 10... Nxd5 {[%clk 0:02:54.5]} 11. Nxd5 {[%clk 0:03:00.4]}
11... exd5 {[%clk 0:02:55.4]} 12. d4 {[%clk 0:03:00.9]} 12... Bb7 {[%clk
0:02:46.7]} 13. Qd2 {[%clk 0:02:58.3]} 13... Rc8 {[%clk 0:02:39.1]} 14. Rac1
{[%clk 0:02:57.2]} 14... c4 {[%clk 0:02:37.1]} 15. Ne5 {[%clk 0:02:57.5]} 15...
cxb3 {[%clk 0:02:30.2]} 16. Nxd7 {[%clk 0:02:45.1]} 16... Qxd7 {[%clk
0:02:26.9]} 17. axb3 {[%clk 0:02:44.8]} 17... Rxc1 {[%clk 0:02:23.5]} 18. Rxc1
{[%clk 0:02:45.7]} 18... Rc8 {[%clk 0:02:23.8]} 19. e3 {[%clk 0:02:28.9]} 19...
a5 {[%clk 0:02:20]} 20. h4 {[%clk 0:02:20.3]} 20... h5 {[%clk 0:02:11.7]} 21.
Kh2 {[%clk 0:02:18.7]} 21... f5 {[%clk 0:02:10.4]} 22. Bf3 {[%clk 0:02:07.7]}
22... g6 {[%clk 0:02:09.5]} 23. Qd3 {[%clk 0:02:03.1]} 23... Rxc1 {[%clk
0:02:04.4]} 24. Bxc1 {[%clk 0:02:04]} 24... b5 {[%clk 0:01:58.5]} 25. Be2 {[%clk
0:01:52]} 25... Bc6 {[%clk 0:01:53.3]} 26. Bd2 {[%clk 0:01:50.5]} 26... Qd8
{[%clk 0:01:42.6]} 27. Qc3 {[%clk 0:01:47]} 27... Qb6 {[%clk 0:01:42.3]} 28.
Qxa5 {[%clk 0:01:45.9]} 28... Qxa5 {[%clk 0:01:32.5]} 29. Bxa5 {[%clk
0:01:46.8]} 29... Kf7 {[%clk 0:01:29.6]} 30. Kg2 {[%clk 0:01:44.2]} 30... Bd6
{[%clk 0:01:29.3]} 31. Kf1 {[%clk 0:01:38.7]} 31... Ke6 {[%clk 0:01:28.7]} 32.
Ke1 {[%clk 0:01:38]} 32... Kd7 {[%clk 0:01:28.5]} 33. Kd2 {[%clk 0:01:38]} 33...
b4 {[%clk 0:01:24.4]} 34. Ba6 {[%clk 0:01:30.8]} 34... Be7 {[%clk 0:01:22.7]}
35. Bb6 {[%clk 0:01:28.5]} 35... Bd6 {[%clk 0:01:18.9]} 36. Kd3 {[%clk 0:01:17]}
36... Be7 {[%clk 0:01:12.8]} 37. Bc5 {[%clk 0:01:17.2]} 37... Bd6 {[%clk
0:01:11]} 38. Kd2 {[%clk 0:00:55.5]} 38... Be7 {[%clk 0:01:10.6]} 39. Be2 {[%clk
0:00:35.7]} 39... Bd6 {[%clk 0:01:09.5]} 40. Ba6 {[%clk 0:00:32.2]} 40... Be7
{[%clk 0:01:09.1]} 41. Bc8+ {[%clk 0:00:31.3]} 41... Ke8 {[%clk 0:00:56.5]} 42.
Be6 {[%clk 0:00:25.9]} 42... Bf8 {[%clk 0:00:53.7]} 43. f3 {[%clk 0:00:20.5]}
43... Be7 {[%clk 0:00:50.9]} 44. Ke2 {[%clk 0:00:17.9]} 44... Bb5+ {[%clk
0:00:47.4]} 45. Kf2 {[%clk 0:00:15.5]} 45... Bc4 {[%clk 0:00:37.9]} 46. Ke1
{[%clk 0:00:09.1]} 46... Bxb3 {[%clk 0:00:37.7]} 47. Kd2 {[%clk 0:00:08.8]}
47... Bc4 {[%clk 0:00:37.2]} 48. Kc2 {[%clk 0:00:08.5]} 48... b3+ {[%clk
0:00:33.2]} 49. Kc3 {[%clk 0:00:08.7]} 49... Bd8 {[%clk 0:00:32.8]} 50. Bb4
{[%clk 0:00:08.1]} 50... f4 {[%clk 0:00:25.9]} 51. exf4 {[%clk 0:00:07.3]} 51...
Bb6 {[%clk 0:00:25.9]} 52. Bc5 {[%clk 0:00:04.6]} 52... Ba5+ {[%clk 0:00:25.6]}
53. Kb2 {[%clk 0:00:05.3]} 53... Be1 {[%clk 0:00:25.8]} 54. f5 {[%clk
0:00:04.5]} 54... gxf5 {[%clk 0:00:20.2]} 55. Bxf5 {[%clk 0:00:05.4]} 55... Kf7
{[%clk 0:00:19.4]} 56. g4 {[%clk 0:00:05.4]} 56... hxg4 {[%clk 0:00:19.9]} 57.
Bxg4 {[%clk 0:00:04.8]} 57... Bxh4 {[%clk 0:00:19.8]} 58. f4 {[%clk 0:00:04.8]}
58... Bg3 {[%clk 0:00:19.6]} 59. Bd1 {[%clk 0:00:05.3]} 59... Bxf4 {[%clk
0:00:18.9]} 60. Bxb3 {[%clk 0:00:06.2]} 60... Bxb3 {[%clk 0:00:16.3]} 61. Kxb3
{[%clk 0:00:07.1]} 61... Ke6 {[%clk 0:00:16.9]} 62. Kc3 {[%clk 0:00:07.5]} 62...
Kf5 {[%clk 0:00:17.3]} 63. Kd3 {[%clk 0:00:07.8]} 63... Bc7 {[%clk 0:00:17.7]}
64. Bb4 {[%clk 0:00:08.3]} 64... Bb6 {[%clk 0:00:18]} 65. Bd2 {[%clk 0:00:08.9]}
65... Bd8 {[%clk 0:00:18.4]} 66. Be3 {[%clk 0:00:09.4]} 66... Be7 {[%clk
0:00:19]} 67. Bd2 {[%clk 0:00:10.1]} 67... Bf6 {[%clk 0:00:19.4]} 68. Be3 {[%clk
0:00:10.6]} 68... Bh4 {[%clk 0:00:19.9]} 69. Bd2 {[%clk 0:00:11]} 69... Bf2
{[%clk 0:00:20.4]} 70. Bc3 {[%clk 0:00:11.2]} 70... Kf4 {[%clk 0:00:20.4]} 71.
Bd2+ {[%clk 0:00:11.6]} 71... Kf3 {[%clk 0:00:20.8]} 72. Bc3 {[%clk 0:00:12.5]}
72... Be3 {[%clk 0:00:21.1]} 73. Be1 {[%clk 0:00:11.8]} 73... Bc1 {[%clk
0:00:21.3]} 74. Bb4 {[%clk 0:00:11.8]} 74... Bb2 {[%clk 0:00:21.3]} 75. Bc5
{[%clk 0:00:12.3]} 75... Kf4 {[%clk 0:00:20]} 76. Bb4 {[%clk 0:00:12.4]} 76...
Kf5 {[%clk 0:00:20.1]} 77. Bc5 {[%clk 0:00:12.7]} 77... Bxd4 {[%clk 0:00:19.2]}
78. Kxd4 {[%clk 0:00:12.9]} 78... Kg6 {[%clk 0:00:19.5]} 79. Kxd5 {[%clk
0:00:13.2]} 1/2-1/2

[Event "Early-Titled-Tuesday-Blitz-October-17-2023"]
[Site "Chess.com"]
[Date "2023.10.17"]
[Round "6"]
[White "Arystanner"]
[Black "vladgoncharov"]
[Result "1-0"]
[WhiteElo "2805"]
[BlackElo "2569"]
[TimeControl "180+1"]
[EndTime "9:12:39 PDT"]
[Termination "Arystanner won on time"]

1. e4 {[%clk 0:03:00.9]} 1... e6 {[%clk 0:02:57.7]} 2. d4 {[%clk 0:03:00.9]}
2... d5 {[%clk 0:02:56.9]} 3. Nc3 {[%clk 0:03:01.7]} 3... Bb4 {[%clk 0:02:53.4]}
4. e5 {[%clk 0:03:02.3]} 4... c5 {[%clk 0:02:53.1]} 5. a3 {[%clk 0:03:02.9]}
5... Bxc3+ {[%clk 0:02:53.2]} 6. bxc3 {[%clk 0:03:03.8]} 6... Qc7 {[%clk
0:02:53.6]} 7. a4 {[%clk 0:03:04.3]} 7... Ne7 {[%clk 0:02:50.4]} 8. Nf3 {[%clk
0:03:04.7]} 8... b6 {[%clk 0:02:45.6]} 9. Bb5+ {[%clk 0:03:04.5]} 9... Bd7
{[%clk 0:02:42.8]} 10. Bd3 {[%clk 0:03:04.8]} 10... h6 {[%clk 0:02:33.6]} 11.
O-O {[%clk 0:03:05.1]} 11... Nbc6 {[%clk 0:02:30.3]} 12. Ba3 {[%clk 0:02:59.5]}
12... Na5 {[%clk 0:02:30]} 13. Re1 {[%clk 0:02:53.6]} 13... Rc8 {[%clk
0:02:25.8]} 14. Qc1 {[%clk 0:02:50.4]} 14... O-O {[%clk 0:02:02.1]} 15. dxc5
{[%clk 0:02:46.8]} 15... bxc5 {[%clk 0:02:01.1]} 16. Ba6 {[%clk 0:02:46.6]}
16... Rb8 {[%clk 0:01:57.7]} 17. Qe3 {[%clk 0:02:47]} 17... Qb6 {[%clk
0:01:13.7]} 18. Bxc5 {[%clk 0:02:42.5]} 18... Qxa6 {[%clk 0:01:11.7]} 19. Bxe7
{[%clk 0:02:42.8]} 19... Rfe8 {[%clk 0:01:11.7]} 20. Bd6 {[%clk 0:02:43.2]}
20... Rbc8 {[%clk 0:01:11.7]} 21. Bb4 {[%clk 0:02:30]} 21... Nc4 {[%clk
0:01:08.7]} 22. Qf4 {[%clk 0:02:21.6]} 22... Qb7 {[%clk 0:01:03.4]} 23. a5
{[%clk 0:01:38.8]} 23... a6 {[%clk 0:01:02.2]} 24. h4 {[%clk 0:01:38.2]} 24...
Bb5 {[%clk 0:00:58.7]} 25. Nd4 {[%clk 0:01:36.7]} 25... Qc7 {[%clk 0:00:55]} 26.
h5 {[%clk 0:01:36.1]} 26... f5 {[%clk 0:00:52.8]} 27. Qg3 {[%clk 0:01:26]} 27...
Qf7 {[%clk 0:00:49.6]} 28. Qh4 {[%clk 0:01:25.5]} 28... Bd7 {[%clk 0:00:47]} 29.
f4 {[%clk 0:01:25.4]} 29... Nd2 {[%clk 0:00:43.9]} 30. Re3 {[%clk 0:01:21.6]}
30... Ne4 {[%clk 0:00:43.8]} 31. Kh2 {[%clk 0:01:21.3]} 31... Rc4 {[%clk
0:00:42.7]} 32. Rg1 {[%clk 0:01:18.9]} 32... Rb8 {[%clk 0:00:39.3]} 33. Ne2
{[%clk 0:01:12.4]} 33... d4 {[%clk 0:00:36.9]} 34. Rd3 {[%clk 0:01:06.5]} 34...
dxc3 {[%clk 0:00:37.1]} 35. Be7 {[%clk 0:00:57.2]} 35... Be8 {[%clk 0:00:35.6]}
36. Rh3 {[%clk 0:00:34]} 36... Rb7 {[%clk 0:00:23.5]} 37. Bd6 {[%clk 0:00:31.2]}
37... Nxd6 {[%clk 0:00:22.6]} 38. exd6 {[%clk 0:00:31.4]} 38... e5 {[%clk
0:00:22.7]} 39. Rd1 {[%clk 0:00:29.4]} 39... Rd7 {[%clk 0:00:22.2]} 40. Re3
{[%clk 0:00:27.8]} 40... Qxh5 {[%clk 0:00:20.1]} 41. Qxh5 {[%clk 0:00:27.5]}
41... Bxh5 {[%clk 0:00:20]} 42. Rxe5 {[%clk 0:00:25.3]} 42... Bxe2 {[%clk
0:00:17.8]} 43. Rxe2 {[%clk 0:00:26]} 43... Kf7 {[%clk 0:00:18.1]} 44. Kg3
{[%clk 0:00:25.5]} 44... Rc6 {[%clk 0:00:17.5]} 45. Re5 {[%clk 0:00:26.2]} 45...
Rcxd6 {[%clk 0:00:17.5]} 46. Rxf5+ {[%clk 0:00:26.8]} 46... Kg6 {[%clk
0:00:17.9]} 47. Rxd6+ {[%clk 0:00:26]} 47... Rxd6 {[%clk 0:00:15.7]} 48. Rc5
{[%clk 0:00:26.7]} 48... Kh7 {[%clk 0:00:15.4]} 49. Rxc3 {[%clk 0:00:26.2]}
49... Rd5 {[%clk 0:00:15.9]} 50. Ra3 {[%clk 0:00:26.5]} 50... Rc5 {[%clk
0:00:16.2]} 51. c3 {[%clk 0:00:27.2]} 51... Kg6 {[%clk 0:00:16.8]} 52. Kf3
{[%clk 0:00:28]} 52... Kf5 {[%clk 0:00:17.2]} 53. g4+ {[%clk 0:00:28.7]} 53...
Ke6 {[%clk 0:00:17.5]} 54. Ke3 {[%clk 0:00:29]} 54... Kd5 {[%clk 0:00:17.3]} 55.
Kd3 {[%clk 0:00:29]} 55... Kc6 {[%clk 0:00:17.2]} 56. c4 {[%clk 0:00:29]} 56...
h5 {[%clk 0:00:17.2]} 57. g5 {[%clk 0:00:29.6]} 57... h4 {[%clk 0:00:17.4]} 58.
Rb3 {[%clk 0:00:30.1]} 58... Rxa5 {[%clk 0:00:16]} 59. Rb8 {[%clk 0:00:29.4]}
59... h3 {[%clk 0:00:15.7]} 60. Kd4 {[%clk 0:00:27.9]} 60... Ra3 {[%clk
0:00:14.6]} 61. Rh8 {[%clk 0:00:27.3]} 61... Rf3 {[%clk 0:00:14]} 62. Ke4 {[%clk
0:00:27.3]} 62... Rc3 {[%clk 0:00:14.2]} 63. Kd4 {[%clk 0:00:26.5]} 63... Rf3
{[%clk 0:00:13.8]} 64. Ke5 {[%clk 0:00:26.9]} 64... a5 {[%clk 0:00:13.2]} 65. f5
{[%clk 0:00:27.4]} 65... a4 {[%clk 0:00:13.5]} 66. Ke4 {[%clk 0:00:24.3]} 66...
Rg3 {[%clk 0:00:12.6]} 67. f6 {[%clk 0:00:24.5]} 67... gxf6 {[%clk 0:00:12.2]}
68. gxf6 {[%clk 0:00:25.4]} 68... Rg4+ {[%clk 0:00:07.8]} 69. Ke5 {[%clk
0:00:23.3]} 69... Rg5+ {[%clk 0:00:05.9]} 70. Ke6 {[%clk 0:00:23.6]} 70... Rg6
{[%clk 0:00:06.2]} 71. Rxh3 {[%clk 0:00:23.4]} 71... Kc5 {[%clk 0:00:05.9]} 72.
Rh4 {[%clk 0:00:17.3]} 72... Rg1 {[%clk 0:00:04.5]} 73. f7 {[%clk 0:00:17.5]}
73... Re1+ {[%clk 0:00:04.6]} 74. Kf5 {[%clk 0:00:18.1]} 74... Rf1+ {[%clk
0:00:04.3]} 75. Rf4 {[%clk 0:00:18.9]} 1-0

[Event "Early-Titled-Tuesday-Blitz-October-17-2023"]
[Site "Chess.com"]
[Date "2023.10.17"]
[Round "6"]
[White "Aslanov_Umid"]
[Black "azikom"]
[Result "1-0"]
[WhiteElo "2527"]
[BlackElo "2619"]
[TimeControl "180+1"]
[EndTime "9:13:05 PDT"]
[Termination "Aslanov_Umid won on time"]

1. e4 {[%clk 0:03:00.9]} 1... c5 {[%clk 0:02:41.6]} 2. Nf3 {[%clk 0:03:00.2]}
2... e6 {[%clk 0:02:41.7]} 3. d4 {[%clk 0:03:00.1]} 3... cxd4 {[%clk 0:02:41.9]}
4. Nxd4 {[%clk 0:03:01]} 4... a6 {[%clk 0:02:41.7]} 5. Bd3 {[%clk 0:03:00.6]}
5... Nc6 {[%clk 0:02:40.5]} 6. Nxc6 {[%clk 0:03:00.2]} 6... bxc6 {[%clk
0:02:41.4]} 7. O-O {[%clk 0:03:00.8]} 7... d5 {[%clk 0:02:41.9]} 8. c4 {[%clk
0:03:01.2]} 8... Nf6 {[%clk 0:02:41.8]} 9. cxd5 {[%clk 0:03:01.3]} 9... cxd5
{[%clk 0:02:41.9]} 10. exd5 {[%clk 0:02:58.7]} 10... Nxd5 {[%clk 0:02:40.9]} 11.
Nc3 {[%clk 0:02:52.4]} 11... Bb7 {[%clk 0:02:39.6]} 12. Qa4+ {[%clk 0:02:49.5]}
12... Qd7 {[%clk 0:02:39.5]} 13. Qxd7+ {[%clk 0:02:49.9]} 13... Kxd7 {[%clk
0:02:40.4]} 14. Nxd5 {[%clk 0:02:50.3]} 14... Bxd5 {[%clk 0:02:39.9]} 15. Bd2
{[%clk 0:02:48.8]} 15... Be7 {[%clk 0:02:36.9]} 16. Bc3 {[%clk 0:02:49]} 16...
Bf6 {[%clk 0:02:36.9]} 17. Bxf6 {[%clk 0:02:47.6]} 17... gxf6 {[%clk 0:02:37.8]}
18. Rfc1 {[%clk 0:02:43.6]} 18... Rhb8 {[%clk 0:02:36.5]} 19. b3 {[%clk
0:02:40.7]} 19... a5 {[%clk 0:02:34.9]} 20. Bxh7 {[%clk 0:02:19]} 20... f5
{[%clk 0:02:31.9]} 21. Rd1 {[%clk 0:02:01.5]} 21... Kd6 {[%clk 0:02:30.6]} 22.
Rd3 {[%clk 0:01:57]} 22... Rh8 {[%clk 0:02:23.9]} 23. Bxf5 {[%clk 0:01:52.8]}
23... Rag8 {[%clk 0:02:11.1]} 24. Be4 {[%clk 0:01:52.9]} 24... Rh4 {[%clk
0:01:55.4]} 25. Bxd5 {[%clk 0:01:51.4]} 25... exd5 {[%clk 0:01:56.3]} 26. Rad1
{[%clk 0:01:51.7]} 26... Rg5 {[%clk 0:01:56.2]} 27. g3 {[%clk 0:01:44]} 27...
Re4 {[%clk 0:01:52.9]} 28. Kg2 {[%clk 0:01:43.4]} 28... a4 {[%clk 0:01:52.1]}
29. h4 {[%clk 0:01:34.9]} 29... Rf5 {[%clk 0:01:49.8]} 30. R1d2 {[%clk
0:01:28.7]} 30... axb3 {[%clk 0:01:49]} 31. axb3 {[%clk 0:01:29.6]} 31... Rb4
{[%clk 0:01:48.7]} 32. f4 {[%clk 0:01:23.7]} 32... Kc5 {[%clk 0:01:43.5]} 33.
Kf3 {[%clk 0:01:22.6]} 33... d4 {[%clk 0:01:19.9]} 34. g4 {[%clk 0:01:13.8]}
34... Rf6 {[%clk 0:01:15]} 35. g5 {[%clk 0:01:12.4]} 35... Rfb6 {[%clk
0:01:14.8]} 36. Rb2 {[%clk 0:01:07.7]} 36... Kd5 {[%clk 0:01:12.7]} 37. h5
{[%clk 0:01:07.2]} 37... Ra6 {[%clk 0:01:03.4]} 38. h6 {[%clk 0:01:05.6]} 38...
Ra1 {[%clk 0:01:03.3]} 39. Rh2 {[%clk 0:01:02]} 39... Ra8 {[%clk 0:01:02.3]} 40.
Rh5 {[%clk 0:00:57.4]} 40... Ke6 {[%clk 0:00:58.7]} 41. Ke4 {[%clk 0:00:57.5]}
41... f5+ {[%clk 0:00:57.2]} 42. Kf3 {[%clk 0:00:37.9]} 42... Kf7 {[%clk
0:00:57.2]} 43. Rh1 {[%clk 0:00:38.3]} 43... Rab8 {[%clk 0:00:45.1]} 44. Rb1
{[%clk 0:00:30.2]} 44... Kg6 {[%clk 0:00:41.1]} 45. Ke2 {[%clk 0:00:30.2]} 45...
Re8+ {[%clk 0:00:38.5]} 46. Kd2 {[%clk 0:00:28]} 46... Re4 {[%clk 0:00:38.1]}
47. Rh1 {[%clk 0:00:28.7]} 47... Rb7 {[%clk 0:00:34.6]} 48. Rh4 {[%clk
0:00:22.9]} 48... Rbe7 {[%clk 0:00:33.2]} 49. Kc2 {[%clk 0:00:16.8]} 49... Re2+
{[%clk 0:00:31.9]} 50. Rd2 {[%clk 0:00:17.4]} 50... Rc7+ {[%clk 0:00:26.2]} 51.
Kd1 {[%clk 0:00:14.5]} 51... Re4 {[%clk 0:00:25.9]} 52. b4 {[%clk 0:00:14.6]}
52... Rb7 {[%clk 0:00:21.2]} 53. b5 {[%clk 0:00:13.2]} 53... Kh7 {[%clk
0:00:20]} 54. Rb2 {[%clk 0:00:12.4]} 54... d3 {[%clk 0:00:19.1]} 55. Rb3 {[%clk
0:00:12.1]} 55... Rd4 {[%clk 0:00:18.7]} 56. Kd2 {[%clk 0:00:11.9]} 56... Ra7
{[%clk 0:00:18.5]} 57. Ke3 {[%clk 0:00:10.9]} 57... Rd5 {[%clk 0:00:17.4]} 58.
Rxd3 {[%clk 0:00:10.1]} 58... Re7+ {[%clk 0:00:16.9]} 59. Kd2 {[%clk 0:00:10.1]}
59... Rxb5 {[%clk 0:00:17.7]} 60. Rd6 {[%clk 0:00:09.8]} 60... Rb8 {[%clk
0:00:13]} 61. g6+ {[%clk 0:00:09.7]} 61... Kg8 {[%clk 0:00:12.1]} 62. Rd5 {[%clk
0:00:09]} 62... Re6 {[%clk 0:00:10.5]} 63. Rxf5 {[%clk 0:00:06.3]} 63... Rxg6
{[%clk 0:00:10.5]} 64. Rg5 {[%clk 0:00:06.8]} 64... Rb6 {[%clk 0:00:10]} 65. Ke3
{[%clk 0:00:06.4]} 65... Kh7 {[%clk 0:00:09.8]} 66. Ke4 {[%clk 0:00:04]} 66...
Rxh6 {[%clk 0:00:09.5]} 67. Rxh6+ {[%clk 0:00:04.4]} 67... Kxh6 {[%clk
0:00:09.5]} 68. Rg2 {[%clk 0:00:04.4]} 68... Rb8 {[%clk 0:00:09.5]} 69. Ke5
{[%clk 0:00:04.7]} 69... Re8+ {[%clk 0:00:09.4]} 70. Kf5 {[%clk 0:00:04.5]}
70... Rf8+ {[%clk 0:00:09.6]} 71. Ke5 {[%clk 0:00:05.1]} 71... Re8+ {[%clk
0:00:09.9]} 72. Kd5 {[%clk 0:00:04.7]} 72... Kh7 {[%clk 0:00:09]} 73. f5 {[%clk
0:00:05]} 73... Re1 {[%clk 0:00:07.8]} 74. f6 {[%clk 0:00:04.2]} 74... Re3
{[%clk 0:00:05.2]} 75. Rg5 {[%clk 0:00:03.2]} 75... Re1 {[%clk 0:00:04.3]} 76.
Kd6 {[%clk 0:00:02.5]} 76... Re2 {[%clk 0:00:03.8]} 77. Kd7 {[%clk 0:00:03]} 1-0

[Event "Early-Titled-Tuesday-Blitz-October-17-2023"]
[Site "Chess.com"]
[Date "2023.10.17"]
[Round "7"]
[White "dontcatchmeifyoucant"]
[Black "nelsi"]
[Result "0-1"]
[WhiteElo "2131"]
[BlackElo "2292"]
[TimeControl "180+1"]
[EndTime "9:15:02 PDT"]
[Termination "nelsi won by resignation"]

1. e4 {[%clk 0:03:00.9]} 1... e5 {[%clk 0:02:58.4]} 2. Nf3 {[%clk 0:03:01.2]}
2... Nc6 {[%clk 0:02:58.1]} 3. Bb5 {[%clk 0:03:01.8]} 3... Nge7 {[%clk 0:02:58]}
4. O-O {[%clk 0:03:00.5]} 4... Ng6 {[%clk 0:02:58.2]} 5. c3 {[%clk 0:02:58.9]}
5... Be7 {[%clk 0:02:55.9]} 6. d4 {[%clk 0:02:57.4]} 6... exd4 {[%clk
0:02:52.2]} 7. cxd4 {[%clk 0:02:56.7]} 7... d5 {[%clk 0:02:52.6]} 8. exd5 {[%clk
0:02:50.9]} 8... Qxd5 {[%clk 0:02:40.9]} 9. Nc3 {[%clk 0:02:51.8]} 9... Qh5
{[%clk 0:02:41.1]} 10. Nb1 {[%clk 0:02:52.7]} 10... Qxb5 {[%clk 0:02:30]} 0-1